bitfinex/quotes_ETHUSD_20241223
["timestamp","ask_amount","ask_price","bid_price","bid_amount"]
[1734977059944,0.02971068,3341.8,3340.9,3.0]
[1734977060245,1.0821,3341.9,3341.0,2.99309]
[1734977060404,1.0821,3341.9,3341.1,4.187289]
[1734977060604,1.0821,3341.9,3341.1,1.194309]
[1734977060826,1.0821,3341.9,3341.2,2.99293]
[1734977062169,1.0798,3342.3,3341.0,6.04377999]
[1734977062300,1.0798,3342.3,3341.1,3.02294585]
[1734977062501,1.0798,3342.3,3341.3,2.99276]
[1734977062707,1.0798,3342.3,3341.4,3.04377999]
[1734977063027,1.0798,3342.3,3341.7,2.99247]
[1734977063227,1.0798,3342.3,3341.9,2.99229]
[1734977064157,1.0466,3342.7,3342.0,2.99218]
[1734977064841,1.0466,3342.7,3342.0,0.299218]
[1734977065180,1.0466,3342.7,3342.2,2.99202]
[1734977065739,1.0466,3342.7,3342.0,0.299218]
[1734977066071,1.0564,3342.5,3341.6,8.95]
[1734977066273,0.40778207,3342.4,3341.6,11.94257]
[1734977066473,0.43749275,3342.4,3341.6,11.94257]
[1734977066772,1.0564,3342.5,3341.6,11.94257]
[1734977067273,1.0564,3342.5,3341.7,2.99246]
[1734977067474,1.0564,3342.5,3341.6,8.95]
[1734977067764,1.0564,3342.5,3341.9,2.99223]
[1734977067968,1.0564,3342.5,3341.6,8.95]
[1734977068124,1.0564,3342.5,3341.9,2.99222]
[1734977068978,1.0564,3342.5,3341.6,3.0]
[1734977069183,1.0564,3342.5,3341.8,2.99237]
[1734977070837,1.0564,3342.5,3341.6,5.99255]
[1734977071067,1.0564,3342.5,3341.7,2.99247]
[1734977071344,1.461192,3342.5,3341.7,2.99247]
[1734977071984,1.09371068,3342.4,3341.2,8.95]
[1734977072182,1.064,3342.2,3341.2,8.95]
[1734977073772,1.064,3342.2,3341.5,2.99265]
[1734977075170,0.02971068,3342.1,3341.1,3.0]
[1734977075356,1.064,3342.2,3341.6,2.99255]
[1734977075700,1.064,3342.2,3341.9,2.99223]
[1734977076058,1.064,3342.2,3342.0,2.99213]
[1734977076254,1.0478,3343.1,3341.8,3.04377999]
[1734977076470,1.0478,3343.1,3342.2,2.99202]
[1734977076673,1.0478,3343.1,3342.2,2.99198]
[1734977077714,1.45168,3343.1,3342.2,2.99198]
[1734977078381,1.45168,3343.1,3342.2,2.99195]
[1734977078717,1.45168,3343.1,3342.2,2.99196]
[1734977079126,1.6552,3343.0,3342.0,2.99213]
[1734977079631,0.02971068,3342.9,3342.0,2.99213]
[1734977079927,2.99184,3342.5,3341.4,9.03644999]
[1734977080129,1.1052,3342.3,3341.4,6.03644999]
[1734977080284,1.1052,3342.3,3341.4,2.99267]
[1734977080490,4.09715,3342.3,3341.2,2.99292]
[1734977080693,1.0298,3342.0,3340.5,10.0173]
[1734977080999,0.55,3342.1,3340.2,4.64986601]
[1734977081000,2.99276,3341.4,3340.4,2.99365]
[1734977081199,1.0298,3341.2,3340.2,3.40305399]
[1734977081530,1.0298,3341.2,3340.7,2.99334]
[1734977082104,1.0298,3341.2,3340.8,2.99325]
[1734977082300,1.0298,3341.2,3340.7,0.299334]
[1734977083020,0.02971068,3341.1,3340.2,3.353084]
[1734977083225,1.048,3341.0,3340.2,2.99381]
[1734977083419,0.02971068,3340.9,3339.6,1.0068]
[1734977083604,1.048,3340.8,3339.8,2.99411]
[1734977083797,0.02971068,3340.7,3339.4,3.04377999]
[1734977084000,1.048,3340.8,3339.4,3.04377999]
[1734977084207,1.07771068,3340.8,3339.5,3.404118]
[1734977084436,1.07771068,3340.8,3339.6,2.99437]
[1734977084621,1.07771068,3340.8,3339.5,3.404118]
[1734977084622,1.07771068,3340.8,3339.7,2.99422]
[1734977085746,3.02300068,3340.8,3339.7,2.99422]
[1734977085928,1.0256,3340.7,3339.7,2.99422]
[1734977086125,1.0256,3340.7,3339.8,0.3403878]
[1734977086126,0.02971068,3340.6,3339.8,0.3403878]
[1734977086446,2.99357,3340.5,3339.4,2.99451]
[1734977086614,1.05531068,3340.4,3339.4,2.99451]
[1734977086948,1.05531068,3340.4,3339.5,2.99441]
[1734977087242,0.02971068,3340.3,3339.5,2.99441]
[1734977087454,0.02971068,3340.3,3339.5,1.194441]
[1734977087630,2.99429,3339.7,3338.9,1.97961214]
[1734977087836,1.05471068,3339.6,3338.9,1.97961214]
[1734977088006,2.9946,3339.4,3338.9,1.97961214]
[1734977088349,1.025,3339.2,3338.3,2.99552]
[1734977088498,0.02971068,3339.1,3338.3,2.99552]
[1734977090361,1.025,3339.0,3337.8,8.95]
[1734977090570,1.025,3338.7,3337.6,2.99614]
[1734977090865,0.02971068,3338.6,3337.7,0.603992]
[1734977091232,1.025,3338.5,3337.7,0.603992]
[1734977091447,0.02971068,3338.4,3337.7,0.603992]
[1734977092463,0.02971068,3338.4,3337.6,2.99614]
[1734977094672,1.025,3338.5,3337.4,3.04377999]
[1734977094874,1.025,3338.5,3338.3,2.99552]
[1734977095958,1.025,3338.5,3337.8,3.04377999]
[1734977096161,1.025,3338.5,3338.1,2.99566]
[1734977096433,1.025,3338.5,3338.2,0.299566]
[1734977096834,1.025,3338.5,3338.2,3.295166]
[1734977097140,1.025,3338.5,3338.3,2.99552]
[1734977097372,1.025,3338.5,3338.4,2.99544]
[1734977099252,1.025,3338.5,3338.2,3.295186]
[1734977099466,1.025,3338.5,3337.9,2.99589]
[1734977100191,1.025,3338.5,3337.5,3.0]
[1734977100701,1.025,3338.5,3337.7,2.99606]
[1734977100904,0.02971068,3338.4,3337.3,8.95]
[1734977101050,3.54571,3338.2,3337.0,2.99663]
[1734977101404,3.0,3338.9,3336.7,1.0752]
[1734977101405,1.0572,3338.0,3337.7,2.99599]
[1734977101539,1.0572,3338.0,3337.6,3.04377999]
[1734977101744,1.0572,3338.0,3337.4,2.99634]
[1734977102161,1.0572,3338.0,3337.2,3.04377999]
[1734977102162,1.0572,3338.0,3337.9,2.99589]
[1734977102392,1.0572,3338.0,3337.6,2.9961]
[1734977102546,1.0572,3338.0,3337.7,0.29961]
[1734977102977,1.0572,3338.0,3337.8,2.99594]
[1734977103185,1.0572,3338.0,3337.7,0.29961]
[1734977103186,1.0572,3338.0,3337.9,2.99589]
[1734977103494,0.02971068,3339.3,3338.4,2.99538]
[1734977103673,1.0813,3339.2,3338.4,2.99538]
[1734977103882,1.0813,3339.2,3338.0,6.03951999]
[1734977104049,1.0813,3339.2,3338.5,2.99534]
[1734977104846,1.0813,3339.2,3338.7,2.99514]
[1734977105051,1.0813,3339.2,3338.5,0.02995149]
[1734977105253,0.25,3340.8,3338.4,3.04377999]
[1734977105254,1.0232,3340.2,3339.3,2.99459]
[1734977105473,1.0232,3340.2,3339.4,2.99454]
[1734977105673,0.650826,3340.2,3338.8,3.04377999]
[1734977105853,0.24914,3340.2,3339.6,2.99401146]
[1734977106060,0.24914,3340.2,3339.2,3.04377999]
[1734977106259,0.24914,3340.2,3339.9,2.99407]
[1734977107045,0.24914,3340.2,3339.2,3.04377999]
[1734977107251,2.99365,3340.4,3338.6,2.99524]
[1734977107569,2.994,3340.1,3338.3,6.04377999]
[1734977107803,0.02971068,3340.0,3338.7,3.04377999]
[1734977108169,2.99432,3339.7,3338.8,3.0]
[1734977108373,0.55,3339.4,3338.4,3.0]
[1734977108554,0.02971068,3339.3,3338.0,2.9958]
[1734977108753,1.0565,3339.2,3338.0,2.9958]
[1734977109010,1.0565,3339.0,3338.0,2.9958]
[1734977109232,0.02971068,3338.9,3338.0,2.9958]
[1734977109536,0.02971068,3338.9,3337.9,3.04377999]
[1734977110069,0.02971068,3338.9,3338.0,3.0]
[1734977110271,0.57971068,3338.9,3337.9,3.04377999]
[1734977110506,0.16362107,3338.8,3337.9,3.04377999]
[1734977110716,1.13911068,3338.7,3337.9,6.03962999]
[1734977111010,1.1094,3338.7,3337.9,3.04377999]
[1734977111402,1.1094,3338.7,3338.1,2.99569]
[1734977113217,2.99417,3339.9,3337.7,3.29563]
[1734977113218,1.0818,3340.6,3338.4,3.04377999]
[1734977113379,1.0818,3340.0,3338.7,2.9951]
[1734977113713,0.02971068,3339.9,3338.8,2.99508]
[1734977114084,0.02971068,3339.9,3338.5,3.0]
[1734977114290,0.02971068,3339.9,3339.0,2.99489]
[1734977114594,0.55,3339.9,3339.0,2.99489]
[1734977114815,1.11151068,3340.0,3338.8,3.04377999]
[1734977115018,1.0818,3340.0,3338.8,3.04377999]
[1734977115201,1.0818,3340.0,3339.4,2.99452]
[1734977115402,1.0818,3340.0,3339.0,2.99487]
[1734977115403,0.02971068,3339.9,3339.0,2.99487]
[1734977116111,0.02971068,3339.9,3338.9,2.99499]
[1734977116316,0.57971068,3339.9,3338.9,2.99499]
[1734977116486,0.57971068,3339.9,3339.0,2.99488]
[1734977116686,1.0818,3340.0,3339.3,2.99461]
[1734977116925,1.0818,3340.0,3339.2,3.04377999]
[1734977117253,1.0818,3340.0,3339.3,3.0]
[1734977117593,1.0818,3340.0,3339.7,2.99427]
[1734977117939,1.0818,3340.0,3339.8,2.99417]
[1734977118234,1.0968,3341.0,3339.8,2.99417]
[1734977118388,1.0968,3340.8,3339.8,2.99417]
[1734977118585,0.02971068,3340.7,3339.7,0.299427]
[1734977118789,0.02971068,3340.7,3338.9,7.493857]
[1734977118790,4.01186,3340.5,3338.9,7.493857]
[1734977119049,1.0183,3340.3,3339.0,1.0537637]
[1734977119252,0.02971068,3340.2,3339.3,2.99462]
[1734977119389,1.0183,3340.3,3339.4,2.99453]
[1734977119593,0.57971068,3340.2,3339.2,3.04377999]
[1734977119792,0.55,3340.0,3339.0,2.99488]
[1734977119991,1.0183,3340.1,3338.9,3.0]
[1734977120423,0.02971068,3340.0,3339.2,2.99465]
[1734977120623,1.0183,3340.1,3338.9,3.0]
[1734977120793,1.0183,3340.1,3339.4,2.99453]
[1734977121745,0.02971068,3340.0,3339.2,6.03847999]
[1734977121892,1.0183,3340.1,3339.5,2.99437]
[1734977122085,1.0183,3340.1,3339.3,0.603848]
[1734977122303,1.0183,3340.1,3339.4,2.99454]
[1734977122501,1.0183,3340.1,3339.3,0.603848]
[1734977122502,1.0183,3340.1,3339.6,3.04377999]
[1734977123626,1.0183,3340.1,3339.8,2.99416]
[1734977123828,1.0183,3340.1,3339.9,0.603794]
[1734977124603,1.1063,3340.8,3340.0,3.04377999]
[1734977125011,0.02971068,3340.7,3340.0,3.04377999]
[1734977125414,0.02971068,3340.7,3339.9,0.603794]
[1734977126503,0.55,3340.5,3339.3,6.598408]
[1734977126703,1.06801068,3340.4,3339.3,3.598408]
[1734977126933,1.0383,3340.4,3339.6,3.04377999]
[1734977127346,1.0383,3340.4,3340.0,2.99393]
[1734977127556,1.0383,3340.4,3340.1,2.99391]
[1734977127856,1.0383,3340.4,3340.0,3.04377999]
[1734977128001,1.0383,3340.4,3339.9,2.99407]
[1734977128838,1.0383,3340.4,3339.9,3.597855]
[1734977129038,1.0383,3340.4,3339.9,2.99407]
[1734977129440,0.02971068,3340.3,3339.7,2.99425]
[1734977129645,0.02971068,3340.3,3339.6,3.04377999]
[1734977129817,1.0194,3340.2,3339.6,3.04377999]
[1734977130143,0.02971068,3340.1,3339.6,3.04377999]
[1734977130617,0.57971068,3340.1,3339.6,3.04377999]
[1734977130818,1.37674507,3340.0,3339.6,3.04377999]
[1734977131126,0.02971068,3339.9,3339.6,3.04377999]
[1734977131324,1.0194,3340.0,3339.6,3.04377999]
[1734977132429,1.0194,3340.0,3339.7,0.07303791]
[1734977134001,0.55,3339.9,3339.7,0.07303791]
[1734977134345,1.79571107,3339.8,3339.2,3.04377999]
[1734977134539,0.57971068,3339.7,3339.2,3.04377999]
[1734977134730,1.0858,3339.6,3339.2,3.04377999]
[1734977134930,1.0858,3339.4,3338.8,3.04377999]
[1734977135250,0.55,3339.1,3338.4,3.04377999]
[1734977135430,1.0858,3338.9,3338.4,3.04377999]
[1734977135850,1.0858,3338.9,3338.6,2.9952]
[1734977136152,1.0858,3338.9,3338.8,3.04377999]
[1734977137128,1.0858,3338.9,3338.8,6.03885999]
[1734977137318,1.0858,3339.6,3338.8,6.03885999]
[1734977137517,0.02971068,3339.5,3338.8,6.03885999]
[1734977137719,0.88067552,3339.5,3338.8,6.03885999]
[1734977138117,0.88067552,3339.5,3338.4,3.59938]
[1734977138118,0.55,3339.2,3338.4,3.04377999]
[1734977138322,0.57971068,3339.2,3338.4,3.04377999]
[1734977139050,0.55,3339.2,3338.4,6.03918999]
[1734977139350,1.0858,3339.3,3338.5,2.99535]
[1734977139351,0.02971068,3339.1,3338.5,2.99535]
[1734977139644,0.02971068,3339.2,3338.6,0.603913]
[1734977139848,1.0858,3339.3,3338.8,3.04377999]
[1734977140051,1.1152,3339.8,3339.2,2.99472]
[1734977140253,1.1152,3339.8,3338.8,6.03877999]
[1734977140254,1.1152,3339.8,3339.3,2.99458]
[1734977140828,1.1152,3339.8,3338.8,3.04377999]
[1734977141028,0.02971068,3339.7,3339.1,2.99481]
[1734977141769,0.02971068,3339.7,3338.8,3.04377999]
[1734977141770,1.1152,3339.6,3338.8,3.04377999]
[1734977142054,0.55,3339.5,3338.8,3.04377999]
[1734977142209,0.55,3339.3,3338.4,3.04377999]
[1734977142409,1.1152,3339.4,3338.4,3.04377999]
[1734977142410,0.55,3339.1,3338.4,3.04377999]
[1734977142650,1.1152,3338.9,3338.4,3.04377999]
[1734977143255,1.14491068,3338.9,3338.4,3.04377999]
[1734977144349,1.14491068,3338.9,3338.0,3.04377999]
[1734977144350,0.55,3338.8,3338.0,3.04377999]
[1734977144550,1.14491068,3338.7,3338.0,3.04377999]
[1734977145461,0.55,3338.6,3337.8,2.99594]
[1734977145662,0.57971068,3338.6,3337.8,2.99594]
[1734977145960,1.1152,3338.7,3338.1,2.99564]
[1734977146346,1.1152,3338.7,3338.3,2.9955]
[1734977146517,1.0842,3339.4,3338.4,3.04377999]
[1734977146720,1.0842,3339.2,3338.4,3.11675126]
[1734977146916,0.55,3339.1,3338.4,6.11217126]
[1734977147120,0.02971068,3339.0,3338.4,6.11217126]
[1734977147530,0.55,3339.1,3338.5,2.99535]
[1734977147734,0.55,3339.1,3338.5,3.06826469]
[1734977147953,1.068,3339.0,3338.5,0.07291469]
[1734977148154,1.068,3339.0,3338.5,3.06820469]
[1734977149383,1.068,3339.0,3338.5,0.07291469]
[1734977150858,1.068,3339.0,3338.5,3.06823469]
[1734977151623,0.55,3338.9,3338.5,0.07291469]
[1734977152363,0.02971068,3338.8,3338.5,0.07291469]
[1734977152566,0.55,3338.9,3338.5,0.07291469]
[1734977153329,0.57971068,3338.9,3338.5,0.07291469]
[1734977153615,0.55,3338.9,3338.5,0.07291469]
[1734977153964,1.0504,3338.7,3338.5,0.07291469]
[1734977154227,0.74272175,3338.6,3338.5,0.07291469]
[1734977154511,0.74272175,3338.6,3338.0,3.04377999]
[1734977154512,0.55,3338.4,3337.2,7.28705201]
[1734977154712,0.55,3338.4,3337.2,4.29059201]
[1734977154713,1.0504,3338.1,3337.2,4.29059201]
[1734977154919,0.57971068,3338.0,3337.2,4.29059201]
[1734977155082,0.55,3337.8,3337.2,4.29059201]
[1734977155281,0.57971068,3337.8,3337.2,4.29059201]
[1734977155485,0.55,3337.6,3337.2,1.24681202]
[1734977155876,0.55,3337.6,3337.0,2.99667]
[1734977156681,0.55,3337.6,3337.0,2.99666]
[1734977157084,0.02971068,3337.5,3337.0,2.99666]
[1734977157483,0.55,3337.6,3337.0,2.99666]
[1734977157721,0.55,3337.6,3336.8,3.04377999]
[1734977158055,0.55,3337.6,3337.2,2.99651]
[1734977158602,1.0442,3337.7,3337.2,3.04377999]
[1734977158807,1.0442,3337.7,3337.4,2.99629]
[1734977159007,1.0442,3337.7,3337.2,6.04020999]
[1734977159164,1.0442,3337.7,3337.3,2.9964]
[1734977159699,1.0442,3337.7,3337.4,2.99633]
[1734977160669,1.0442,3337.7,3337.5,0.06948236]
[1734977160867,1.0442,3337.7,3336.9,2.99672]
[1734977160868,0.57971068,3337.6,3336.9,2.99672]
[1734977161069,0.74210175,3337.6,3336.8,3.04377999]
[1734977161318,0.55,3337.4,3336.5,1.99043127]
[1734977161479,1.0175,3336.9,3335.7,4.24466202]
[1734977161685,1.0175,3336.7,3335.9,2.99768]
[1734977161870,1.0557,3336.5,3335.7,1.24681202]
[1734977162071,0.57971068,3336.4,3335.7,1.24681202]
[1734977162322,0.74325175,3336.4,3335.7,1.24681202]
[1734977162530,0.16354107,3336.4,3335.9,2.99761]
[1734977162837,0.16354107,3336.4,3335.7,1.24681202]
[1734977162838,0.55,3337.7,3336.6,2.99703]
[1734977162990,1.0314,3337.5,3336.4,6.04099999]
[1734977163194,1.0314,3337.3,3336.4,3.04377999]
[1734977163525,1.0314,3337.3,3336.7,2.99693]
[1734977163884,1.0314,3337.3,3336.4,7.68174799]
[1734977164088,2.31612667,3337.6,3336.8,3.04377999]
[1734977164289,1.23422667,3337.6,3337.5,2.99625]
[1734977164629,1.0819,3338.0,3337.3,2.99642]
[1734977164790,0.02971068,3337.9,3336.8,3.04377999]
[1734977164993,1.0823,3337.8,3336.9,0.411278]
[1734977165191,1.0823,3337.8,3337.2,3.04377999]
[1734977165511,1.0823,3338.4,3337.6,3.04377999]
[1734977165715,0.02971068,3338.3,3337.1,2.99659]
[1734977165921,0.02971068,3338.3,3337.4,2.99633]
[1734977166688,0.44044875,3338.3,3337.4,2.99633]
[1734977166998,0.02971068,3338.3,3337.2,3.04377999]
[1734977167204,0.55,3338.3,3337.7,2.99607]
[1734977167404,0.55,3338.3,3337.5,2.99623]
[1734977168005,0.55,3338.3,3337.2,6.04024999]
[1734977168006,1.0823,3338.4,3337.4,2.99634]
[1734977168322,1.0823,3338.4,3337.5,0.60700819]
[1734977168487,1.0823,3338.4,3337.6,1.0842]
[1734977168686,1.0823,3338.4,3337.8,2.99592]
[1734977168919,1.0823,3338.4,3337.6,1.0842]
[1734977168920,1.0823,3338.4,3337.9,2.99589]
[1734977169123,1.0823,3338.4,3337.7,2.99602]
[1734977169646,1.0823,3338.4,3337.7,0.46872282]
[1734977169853,1.0183,3338.7,3337.6,7.12412999]
[1734977170004,1.23422667,3339.5,3338.0,3.04377999]
[1734977170206,1.23422667,3339.5,3338.1,1.0475]
[1734977170501,1.23422667,3339.5,3338.9,2.99497]
[1734977170921,3.0890807,3340.0,3338.9,1.0475]
[1734977170922,1.23422667,3340.0,3338.9,1.0475]
[1734977171114,1.23422667,3340.0,3339.0,0.299497]
[1734977171315,0.02971068,3339.9,3339.0,0.299497]
[1734977171630,1.23422667,3340.0,3339.5,2.99445]
[1734977171838,1.23422667,3340.0,3339.6,2.99434]
[1734977172031,0.46016667,3340.0,3339.6,0.299434]
[1734977172455,0.46016667,3340.0,3339.6,3.293794]
[1734977172651,0.02971068,3340.3,3339.6,3.293794]
[1734977172918,0.7954,3340.7,3339.6,2.99436]
[1734977173112,0.46016667,3341.1,3339.0,0.299497]
[1734977173113,0.57971068,3340.6,3339.0,0.299497]
[1734977173373,0.55,3340.4,3339.3,2.99459]
[1734977173579,2.99413,3339.9,3338.7,2.99515]
[1734977173869,0.55,3339.6,3338.5,2.99535]
[1734977174166,0.55,3339.4,3338.5,2.99535]
[1734977174369,0.02971068,3339.3,3338.5,2.99535]
[1734977174670,0.57971068,3339.4,3338.5,2.99535]
[1734977174869,0.57971068,3339.4,3338.2,3.78354]
[1734977175014,0.57971068,3339.4,3338.2,0.788]
[1734977175369,0.55,3339.4,3338.6,2.99526]
[1734977175863,0.57971068,3339.6,3338.7,0.06837324]
[1734977176030,0.55,3339.6,3338.5,2.99535]
[1734977176382,0.55,3339.6,3338.9,2.99496]
[1734977176671,0.57971068,3339.6,3339.0,0.06820355]
[1734977178416,0.57971068,3339.6,3338.7,2.99515]
[1734977178731,0.57971068,3339.6,3338.8,0.06735684]
[1734977178932,1.01663275,3339.6,3338.8,0.06735684]
[1734977179131,0.57971068,3339.6,3338.6,2.99524]
[1734977179346,0.57971068,3339.6,3338.9,0.06730027]
[1734977179545,0.57971068,3339.6,3338.6,2.99524]
[1734977179763,0.57971068,3339.6,3339.0,0.06724371]
[1734977179966,0.57971068,3339.6,3338.6,2.99524]
[1734977180147,0.43694407,3339.5,3339.1,0.06718716]
[1734977180332,0.55,3339.4,3338.6,2.99524]
[1734977180534,0.55,3339.4,3339.2,0.0671306]
[1734977180772,0.55,3339.4,3338.4,3.04377999]
[1734977180918,0.55,3339.6,3338.6,2.99518]
[1734977181372,0.55,3339.6,3338.7,0.0674134]
[1734977181537,0.02971068,3339.5,3338.7,0.0674134]
[1734977181737,0.57971068,3339.6,3338.7,0.0674134]
[1734977182780,0.57971068,3339.6,3338.7,3.0625634]
[1734977182987,0.55,3339.4,3338.7,0.0674134]
[1734977183302,0.55,3339.1,3338.2,2.99554]
[1734977183482,0.02971068,3339.0,3338.8,0.06735684]
[1734977183684,0.55,3338.8,3337.7,2.99599]
[1734977183851,0.02971068,3338.7,3337.7,2.99599]
[1734977184038,0.55,3338.6,3337.7,2.99599]
[1734977184237,0.02971068,3338.5,3337.7,2.99599]
[1734977185034,0.55,3338.3,3337.1,0.7846]
[1734977185284,0.55,3338.3,3336.8,4.29059201]
[1734977185285,0.7525,3337.9,3336.8,8.07204201]
[1734977185600,1.3025,3337.1,3336.8,1.24681202]
[1734977185834,3.54679,3336.9,3336.8,1.24681202]
[1734977185960,0.55,3336.8,3336.1,1.24681202]
[1734977186162,0.02971068,3336.7,3336.1,1.24681202]
[1734977186543,0.7765,3336.6,3336.1,1.24681202]
[1734977186741,0.57971068,3336.5,3336.1,1.24681202]
[1734977187277,0.57971068,3336.5,3335.5,3.1705243]
[1734977187487,0.55,3336.3,3335.5,0.1725343]
[1734977187804,0.02971068,3336.2,3335.5,0.1725343]
[1734977188499,0.55,3336.1,3335.5,0.1725343]
[1734977188660,0.7743,3336.4,3335.5,0.1725343]
[1734977188661,1.3788,3335.9,3335.5,0.1725343]
[1734977189002,0.55,3335.7,3335.5,0.1725343]
[1734977189203,0.02971068,3335.6,3335.5,0.1725343]
[1734977189377,0.55,3335.7,3335.5,0.1725343]
[1734977189378,0.02971068,3335.7,3335.5,0.1725343]
[1734977189543,0.02971068,3335.7,3335.5,0.24122368]
[1734977189944,0.02971068,3335.7,3335.5,0.1725343]
[1734977190141,0.99063007,3335.6,3335.5,0.1725343]
[1734977190961,0.55,3335.8,3335.5,0.1725343]
[1734977191163,0.02971068,3335.8,3335.5,0.1725343]
[1734977191362,0.57971068,3335.8,3335.6,0.06863271]
[1734977191581,0.57971068,3335.8,3335.5,0.1725343]
[1734977191969,0.57971068,3335.8,3335.6,0.07034515]
[1734977192149,0.57971068,3335.8,3335.5,0.1725343]
[1734977192490,0.57971068,3335.8,3335.6,0.07032379]
[1734977192695,0.99061907,3335.7,3335.5,0.1725343]
[1734977192846,4.32937068,3335.6,3335.5,0.1725343]
[1734977193243,7.32937068,3335.6,3335.5,0.1725343]
[1734977193490,7.29966,3335.6,3335.5,0.1725343]
[1734977194351,0.55,3335.0,3333.7,3.84567999]
[1734977194548,0.55,3334.7,3333.7,2.99966]
[1734977194793,0.55,3334.5,3333.8,2.99957]
[1734977195181,0.55,3334.7,3333.7,3.04377999]
[1734977195554,0.7623,3334.8,3333.7,3.04377999]
[1734977195794,0.7623,3334.8,3334.3,2.99911]
[1734977196178,0.8042,3335.7,3334.1,3.04377999]
[1734977196390,0.02971068,3335.5,3334.6,2.99885]
[1734977196592,0.02971068,3335.5,3334.2,0.68750715]
[1734977196767,2.99833,3335.2,3334.0,2.99935]
[1734977196965,3.24752,3336.1,3333.7,3.04377999]
[1734977196966,0.8042,3335.0,3333.7,3.04377999]
[1734977197193,0.02971068,3334.9,3333.8,2.99952]
[1734977197393,0.02971068,3334.9,3334.0,2.99934]
[1734977197964,0.57971068,3334.9,3334.0,2.99934]
[1734977198166,0.98823207,3334.9,3334.2,2.99921]
[1734977198365,0.55,3334.9,3334.2,2.99921]
[1734977199515,0.83391068,3335.0,3333.7,3.04377999]
[1734977199819,0.7682,3335.6,3334.6,2.99878]
[1734977199986,0.02971068,3335.5,3334.0,2.9994]
[1734977200179,0.02971068,3335.5,3334.1,0.37873]
[1734977200377,0.02971068,3335.5,3334.5,2.99893]
[1734977200581,0.7682,3335.6,3334.5,2.99893]
[1734977200812,3.76617,3335.6,3334.5,2.99893]
[1734977201221,3.76617,3335.6,3334.1,0.37873]
[1734977201222,0.7682,3335.6,3334.3,0.7655]
[1734977201369,0.02971068,3335.5,3334.8,2.9986]
[1734977202280,0.02971068,3335.5,3334.3,0.7655]
[1734977202480,0.57971068,3335.5,3334.5,2.99893]
[1734977202913,0.55,3335.5,3334.3,0.7655]
[1734977203211,0.02971068,3335.5,3334.3,0.7655]
[1734977203385,0.02971068,3335.5,3334.7,2.9987]
[1734977204470,0.57971068,3335.5,3334.5,2.99892]
[1734977204719,3.57778068,3335.5,3334.3,3.7646]
[1734977205025,3.57778068,3335.5,3334.3,0.7655]
[1734977205177,1.24879807,3335.4,3334.5,2.99887]
[1734977205378,0.55,3335.3,3334.6,2.99885]
[1734977205774,0.55,3335.3,3334.7,0.06891254]
[1734977205979,0.8142,3335.4,3335.0,2.99849]
[1734977206176,2.99754,3336.1,3334.8,0.06885584]
[1734977206410,0.681174,3336.0,3335.1,3.06717909]
[1734977207018,0.8142,3336.2,3335.5,2.998]
[1734977207319,0.8142,3336.2,3335.6,0.06853568]
[1734977207518,0.34651682,3337.0,3335.6,0.06853568]
[1734977207823,0.7647,3336.9,3336.0,2.99756]
[1734977207972,0.7647,3336.9,3336.2,2.99734]
[1734977208329,0.7647,3336.9,3336.6,2.99704]
[1734977208528,0.7647,3337.5,3336.3,0.06795771]
[1734977208750,0.7647,3337.5,3336.9,2.99678]
[1734977209083,0.7647,3337.5,3337.0,0.06740128]
[1734977209611,2.99671,3337.0,3336.0,2.99752]
[1734977209798,2.99671,3337.0,3335.8,0.7993]
[1734977209799,1.14478168,3336.9,3335.8,2.99777]
[1734977209983,0.55,3336.8,3336.1,0.06791105]
[1734977210185,0.55,3336.8,3335.9,0.0676299]
[1734977210380,0.55,3336.8,3336.3,2.99731]
[1734977210582,0.8154,3336.9,3336.1,0.812]
[1734977210890,2.9958,3338.1,3336.1,0.812]
[1734977210891,0.8209,3337.5,3336.7,2.99691]
[1734977211084,0.8209,3337.5,3336.2,0.06737999]
[1734977211329,0.8209,3337.5,3336.1,0.812]
[1734977211330,0.02971068,3337.4,3336.8,0.06704013]
[1734977211526,0.85061068,3337.5,3336.6,2.99705]
[1734977211682,0.85061068,3337.5,3336.9,0.06706344]
[1734977211879,0.85061068,3337.5,3336.6,2.99705]
[1734977212081,0.85061068,3337.5,3336.3,0.387689]
[1734977212082,2.99636,3337.4,3336.3,0.387689]
[1734977212326,0.57971068,3337.3,3336.7,0.06717671]
[1734977212630,0.57971068,3337.3,3336.1,0.812]
[1734977212828,0.55,3337.4,3336.1,0.812]
[1734977213127,0.55,3337.4,3336.6,2.99706]
[1734977213281,0.57971068,3337.4,3336.6,2.99706]
[1734977213484,1.01939075,3337.4,3336.6,2.99706]
[1734977213799,1.01939075,3337.4,3336.7,0.06702749]
[1734977213996,0.98968007,3337.4,3336.7,0.06702749]
[1734977214196,0.55,3337.4,3336.9,2.99677]
[1734977214511,0.55,3337.4,3337.0,0.06685227]
[1734977214827,0.55,3337.4,3336.8,2.99686]
[1734977215030,0.02971068,3337.3,3336.5,2.99707]
[1734977215210,0.02971068,3337.3,3336.9,0.0669089]
[1734977215379,0.55,3337.4,3336.6,2.99703]
[1734977215829,0.55,3337.4,3336.7,0.06696355]
[1734977216031,0.55,3337.4,3336.7,3.06388355]
[1734977216183,0.57971068,3337.4,3336.7,3.06388355]
[1734977219087,0.55,3337.4,3336.7,3.06388355]
[1734977219434,0.02971068,3337.3,3336.7,3.06388355]
[1734977219733,0.55,3337.4,3336.7,3.06388355]
[1734977219898,0.55,3337.1,3336.7,0.06696355]
[1734977220091,0.55,3337.1,3336.1,0.812]
[1734977220288,0.55,3337.3,3336.5,2.99712]
[1734977220519,0.55,3337.3,3336.1,3.80945]
[1734977220520,0.55,3337.3,3336.6,0.06595938]
[1734977220705,1.03364607,3337.3,3336.1,0.812]
[1734977220906,0.85061068,3337.5,3336.7,3.06283807]
[1734977220907,0.55,3337.4,3336.7,3.06283807]